[Event "European Women's Chess Championship (49-84)"]
[Site "Batumi, Georgia"]
[Date "2026.05.25"]
[Round "1.80"]
[White "Rudzinska, Michalina"]
[Black "Chighvaria, Ana"]
[Result "1-0"]
[TimeControl "90min /40moves + 30min + 30-sec increment from move 1"]
[WhiteTitle "-"]
[BlackTitle "-"]
[WhiteFideId "1172883"]
[BlackFideId "13628666"]
[WhiteElo "2200"]
[BlackElo "1518"]

1. e4 {[%clk 01:30:56]} {[%emt 00:00:04]} c5 {[%clk 01:30:55]} {[%emt
00:00:06]} 2. Nf3 {[%clk 01:31:18]} {[%emt 00:00:08]} Nc6 {[%clk 01:31:18]}
{[%emt 00:00:07]} 3. d4 {[%clk 01:31:36]} {[%emt 00:00:11]} cxd4 {[%clk
01:31:37]} {[%emt 00:00:10]} 4. Nxd4 {[%clk 01:31:59]} {[%emt 00:00:08]} g6
{[%clk 01:31:54]} {[%emt 00:00:13]} 5. c4 {[%clk 01:31:31]} {[%emt 00:00:57]}
Bg7 {[%clk 01:32:15]} {[%emt 00:00:09]} 6. Be3 {[%clk 01:31:31]} {[%emt
00:00:31]} Nf6 {[%clk 01:32:31]} {[%emt 00:00:14]} 7. Nc3 {[%clk 01:31:39]}
{[%emt 00:00:22]} Ng4 {[%clk 01:29:54]} {[%emt 00:03:07]} 8. Qxg4 {[%clk
01:31:29]} {[%emt 00:00:40]} Bxd4 {[%clk 01:23:58]} {[%emt 00:06:25]} 9. Bxd4
{[%clk 01:30:24]} {[%emt 00:01:36]} Nxd4 {[%clk 01:24:14]} {[%emt 00:00:14]} 10.
O-O-O {[%clk 01:27:54]} {[%emt 00:03:00]} e5 {[%clk 01:17:19]} {[%emt
00:07:25]} 11. Qg3 {[%clk 01:24:25]} {[%emt 00:04:00]} d6 {[%clk 01:13:15]}
{[%emt 00:04:34]} 12. f4 {[%clk 01:22:14]} {[%emt 00:02:40]} f6 {[%clk
01:12:37]} {[%emt 00:01:07]} 13. h4 {[%clk 01:18:01]} {[%emt 00:04:44]} Be6
{[%clk 01:08:34]} {[%emt 00:04:33]} 14. h5 {[%clk 01:10:59]} {[%emt 00:07:33]}
g5 {[%clk 01:01:09]} {[%emt 00:07:54]} 15. fxg5 {[%clk 01:11:09]} {[%emt
00:00:21]} fxg5 {[%clk 01:01:18]} {[%emt 00:00:20]} 16. Kb1 {[%clk 01:01:23]}
{[%emt 00:10:16]} Qf6 {[%clk 00:58:37]} {[%emt 00:03:10]} 17. Ne2 {[%clk
00:57:15]} {[%emt 00:04:39]} Nxe2 {[%clk 00:57:27]} {[%emt 00:01:40]} 18. Bxe2
{[%clk 00:57:41]} {[%emt 00:00:04]} O-O-O {[%clk 00:57:06]} {[%emt 00:00:51]}
19. Qa3 {[%clk 00:56:02]} {[%emt 00:02:09]} Qf2 {[%clk 00:52:04]} {[%emt
00:05:32]} 20. Rhe1 {[%clk 00:39:35]} {[%emt 00:16:57]} Qb6 {[%clk 00:40:51]}
{[%emt 00:11:42]} 21. Qg3 {[%clk 00:37:41]} {[%emt 00:02:24]} h6 {[%clk
00:37:53]} {[%emt 00:03:27]} 22. c5 {[%clk 00:29:33]} {[%emt 00:08:40]} Qa5
{[%clk 00:34:23]} {[%emt 00:03:59]} 23. b3 {[%clk 00:28:59]} {[%emt 00:01:05]}
dxc5 {[%clk 00:29:56]} {[%emt 00:04:58]} 24. Qxe5 {[%clk 00:28:45]} {[%emt
00:00:44]} Bd7 {[%clk 00:27:56]} {[%emt 00:02:29]} 25. Rc1 {[%clk 00:26:31]}
{[%emt 00:02:45]} b6 {[%clk 00:26:01]} {[%emt 00:02:25]} 26. Red1 {[%clk
00:23:46]} {[%emt 00:03:16]} Bc6 {[%clk 00:23:56]} {[%emt 00:02:34]} 27. Bg4+
{[%clk 00:22:54]} {[%emt 00:01:22]} Kb7 {[%clk 00:20:59]} {[%emt 00:03:28]} 28.
Qe7+ {[%clk 00:22:59]} {[%emt 00:00:25]} Bd7 {[%clk 00:19:40]} {[%emt
00:01:49]} 29. Rxd7+ {[%clk 00:22:55]} {[%emt 00:00:35]} Rxd7 {[%clk 00:19:51]}
{[%emt 00:00:17]} 30. Qxd7+ {[%clk 00:23:18]} {[%emt 00:00:08]} Kb8 {[%clk
00:18:52]} {[%emt 00:01:28]} 31. Qd6+ {[%clk 00:23:37]} {[%emt 00:00:12]} Kb7
{[%clk 00:18:59]} {[%emt 00:00:23]} 32. Qd5+ {[%clk 00:23:57]} {[%emt
00:00:10]} Ka6 {[%clk 00:18:48]} {[%emt 00:00:41]} 33. Be2+ {[%clk 00:23:42]}
{[%emt 00:00:45]} b5 {[%clk 00:18:59]} {[%emt 00:00:19]} 34. a4 {[%clk
00:23:26]} {[%emt 00:00:47]} c4 {[%clk 00:16:56]} {[%emt 00:02:32]} 35. axb5+
{[%clk 00:23:34]} {[%emt 00:00:22]} Kb6 {[%clk 00:17:12]} {[%emt 00:00:13]} 36.
Qc6# {[%clk 00:23:59]} {[%emt 00:00:06]} 1-0

[Event "European Women's Chess Championship (49-84)"]
[Site "Batumi, Georgia"]
[Date "2026.05.25"]
[Round "1.82"]
[White "Kochavi, Dana"]
[Black "Casadevall Mainau, Iraida"]
[Result "1-0"]
[TimeControl "90min /40moves + 30min + 30-sec increment from move 1"]
[WhiteTitle "-"]
[BlackTitle "-"]
[WhiteFideId "2837137"]
[BlackFideId "54543142"]
[WhiteElo "2209"]
[BlackElo "1729"]

1. e4 {[%emt 00:31:13]} e5 {[%emt 00:00:18]} 2. Nf3 {[%emt 00:00:07]} Nc6
{[%emt 00:00:25]} 3. Bb5 {[%emt 00:00:04]} a6 {[%emt 00:01:07]} 4. Ba4 {[%emt
00:00:02]} Nf6 {[%emt 00:00:38]} 5. O-O {[%emt 00:00:12]} Be7 {[%emt 00:00:50]}
6. Re1 {[%emt 00:00:15]} b5 {[%emt 00:01:12]} 7. Bb3 {[%emt 00:00:03]} d6
{[%emt 00:00:19]} 8. c3 {[%emt 00:00:09]} O-O {[%emt 00:02:43]} 9. h3 {[%emt
00:00:02]} Nb8 {[%emt 00:02:18]} 10. d4 {[%emt 00:00:17]} Bb7 {[%emt 00:01:47]}
11. Nbd2 Re8 {[%emt 00:00:54]} 12. Bc2 Bf8 {[%emt 00:04:24]} 13. Nf1 Nbd7
{[%emt 00:04:29]} 14. Ng3 a5 {[%emt 00:00:18]} 15. Bd3 {[%emt 00:07:14]} b4
{[%emt 00:09:54]} 16. Qb3 {[%emt 00:07:04]} Ba6 {[%emt 00:14:02]} 17. Bxa6
{[%emt 00:08:38]} Rxa6 {[%emt 00:00:20]} 18. Bd2 {[%emt 00:01:26]} bxc3 {[%emt
00:02:59]} 19. bxc3 {[%emt 00:00:49]} c6 {[%emt 00:05:29]} 20. Rab1 {[%emt
00:06:06]} Rb6 {[%emt 00:05:47]} 21. Qa4 {[%emt 00:05:40]} Rxb1 {[%emt
00:01:44]} 22. Rxb1 {[%emt 00:00:04]} Qc7 {[%emt 00:09:37]} 23. c4 {[%emt
00:11:39]} exd4 {[%emt 00:16:17]} 24. Nxd4 {[%emt 00:00:50]} Nxe4 {[%emt
00:01:36]} 25. Nxe4 {[%emt 00:04:27]} Rxe4 {[%emt 00:00:38]} 26. Nxc6 {[%emt
00:18:04]} Nc5 {[%emt 00:07:31]} 27. Qb5 {[%emt 00:00:29]} a4 {[%emt 00:03:44]}
28. Be3 {[%emt 00:06:44]} Qd7 {[%emt 00:03:45]} 29. Nb4 {[%emt 00:04:40]} Qe6
{[%emt 00:03:19]} 30. Nd5 {[%emt 00:00:03]} h6 {[%emt 00:01:41]} 31. Rd1 {[%emt
00:01:05]} g5 {[%emt 00:02:21]} 32. Kf1 {[%emt 00:02:01]} g4 {[%emt 00:01:21]}
33. hxg4 {[%emt 00:00:14]} Qxg4 {[%emt 00:00:10]} 34. Nf6+ {[%emt 00:00:53]}
1-0